Department Family,Entity,Date Paid,Expense Type,Expenses Area,Supplier Name,Transaction Reference,Total,VAT Registration Number
Department of Health,Imperial College Healthcare NHS Trust,05/01/2016,Jac - Stock,Stock,A A H Pharmaceuticals Limited,3278815,"30,467.86",Optional requirement only
Department of Health,Imperial College Healthcare NHS Trust,12/01/2016,Jac - Stock,Stock,A A H Pharmaceuticals Limited,3283752,"36,702.59",Optional requirement only
Department of Health,Imperial College Healthcare NHS Trust,05/01/2016,Acton Housing Association,Housing Deductions,A2dominion Housing Group Ltd,3280083,"176,413.11",Optional requirement only
Department of Health,Imperial College Healthcare NHS Trust,05/01/2016,Season Ticket Cr Abellio,Season Tickets,Abellio Transport Holdings Ltd,3281864,"44,408.40",Optional requirement only
Department of Health,Imperial College Healthcare NHS Trust,21/01/2016,Season Ticket Cr Abellio,Season Tickets,Abellio Transport Holdings Ltd,3288397,"33,022.00",Optional requirement only
Department of Health,Imperial College Healthcare NHS Trust,12/01/2016,Materials - Building,Capital Summary,Alarm Communication Limited,3284517,"69,809.89",Optional requirement only
Department of Health,Imperial College Healthcare NHS Trust,15/01/2016,Buildings-Additions-Purchased,Capital Summary,Alarm Communication Limited,3288684,"333,491.87",Optional requirement only
Department of Health,Imperial College Healthcare NHS Trust,15/01/2016,Materials - Building,Capital Summary,Alarm Communication Limited,3288684,"105,313.20",Optional requirement only
Department of Health,Imperial College Healthcare NHS Trust,12/01/2016,Med & Surg Equip General,Investigative Sciences & C S,Alliance Diagnostic Services Ltd,3285631,"79,200.00",Optional requirement only
Department of Health,Imperial College Healthcare NHS Trust,12/01/2016,Med & Surg Equip General,Investigative Sciences & C S,Alliance Diagnostic Services Ltd,3285642,"76,560.00",Optional requirement only
Department of Health,Imperial College Healthcare NHS Trust,26/01/2016,Med & Surg Equip General,Investigative Sciences & C S,Alliance Diagnostic Services Ltd,3296186,"78,760.80",Optional requirement only
Department of Health,Imperial College Healthcare NHS Trust,26/01/2016,Med & Surg Equip Hire,Investigative Sciences & C S,Alliance Diagnostic Services Ltd,3296181,"61,200.00",Optional requirement only
Department of Health,Imperial College Healthcare NHS Trust,05/01/2016,Jac - Stock,Stock,Alliance Healthcare (Distribution) Ltd,3281439,"40,456.79",Optional requirement only
Department of Health,Imperial College Healthcare NHS Trust,07/01/2016,Computer Software/License,Human Resources,Allocate Software Plc,3282978,"62,985.60",Optional requirement only
Department of Health,Imperial College Healthcare NHS Trust,14/01/2016,Med & Surg Equip Leases,Directorate Of Strategy,Arjo Huntleigh,3284928,"404,448.84",Optional requirement only
Department of Health,Imperial College Healthcare NHS Trust,14/01/2016,Computer Hardware Purch,Finance Directorate,Avantec Ltd,3287468,"56,374.80",Optional requirement only
Department of Health,Imperial College Healthcare NHS Trust,26/01/2016,Jac - Stock,Stock,Baxalta Uk Limited,3287393,"30,800.00",Optional requirement only
Department of Health,Imperial College Healthcare NHS Trust,19/01/2016,Dialysers,Division Of Medicine,Baxter Healthcare Ltd,3289468,"62,803.06",Optional requirement only
Department of Health,Imperial College Healthcare NHS Trust,05/01/2016,Legal Fees,Investigative Sciences & C S,Bird & Bird Llp,3281881,"47,220.64",Optional requirement only
Department of Health,Imperial College Healthcare NHS Trust,05/01/2016,Agency Admin & Clerical,Information & Comms Technology,Brook Street Uk Ltd,3279055,"44,780.37",Optional requirement only
Department of Health,Imperial College Healthcare NHS Trust,19/01/2016,Agency Admin & Clerical,Information & Comms Technology,Brook Street Uk Ltd,3288237,"51,764.10",Optional requirement only
Department of Health,Imperial College Healthcare NHS Trust,26/01/2016,Agency Admin & Clerical,Information & Comms Technology,Brook Street Uk Ltd,3296252,"51,985.09",Optional requirement only
Department of Health,Imperial College Healthcare NHS Trust,26/01/2016,Srvcsrecd - Foundationtrust,Finance Directorate,Calderstones Partnership-Nhs Foundation Trust,3280829,"34,215.00",Optional requirement only
Department of Health,Imperial College Healthcare NHS Trust,19/01/2016,Other Research Exp - Non-Pay,Rd Medical Directorate,Central & North West London,3286954,"109,207.00",Optional requirement only
Department of Health,Imperial College Healthcare NHS Trust,12/01/2016,Computer Software/License,Information & Comms Technology,Cerner Uk Ltd,3284930,"252,479.41",Optional requirement only
Department of Health,Imperial College Healthcare NHS Trust,12/01/2016,Computer Software/License,Information & Comms Technology,Cerner Uk Ltd,3284931,"205,144.75",Optional requirement only
Department of Health,Imperial College Healthcare NHS Trust,12/01/2016,Computer Software/License,Information & Comms Technology,Cerner Uk Ltd,3284932,"138,000.00",Optional requirement only
Department of Health,Imperial College Healthcare NHS Trust,12/01/2016,Computer Software/License,Information & Comms Technology,Cerner Uk Ltd,3284930,"40,572.58",Optional requirement only
Department of Health,Imperial College Healthcare NHS Trust,12/01/2016,Computer Software/License,Information & Comms Technology,Cerner Uk Ltd,3284931,"87,907.24",Optional requirement only
Department of Health,Imperial College Healthcare NHS Trust,12/01/2016,Clinical Managed Service Contr,"Surg, Canc & Cardiovasc Div",Chas A Blatchford And Sons Ltd,3265002,"46,259.60",Optional requirement only
Department of Health,Imperial College Healthcare NHS Trust,12/01/2016,Patients Appl: Purchase,"Surg, Canc & Cardiovasc Div",Chas A Blatchford And Sons Ltd,3278373,"41,975.99",Optional requirement only
Department of Health,Imperial College Healthcare NHS Trust,21/01/2016,Srvcsrecd-Foundationtrust,Investigative Sciences & C S,Chelsea And  Westminster Hospital Nhs,3291424,"58,963.33",Optional requirement only
Department of Health,Imperial College Healthcare NHS Trust,11/01/2016,Rates,Directorate Of Strategy,City Of Westminster,3284910,"111,078.00",Optional requirement only
Department of Health,Imperial College Healthcare NHS Trust,12/01/2016,Consultancy Fees,Investigative Sciences & C S,Cloud 21 Limited,3285674,"54,000.00",Optional requirement only
Department of Health,Imperial College Healthcare NHS Trust,26/01/2016,Consultancy Fees,Investigative Sciences & C S,Cloud 21 Limited,3284432,"43,166.40",Optional requirement only
Department of Health,Imperial College Healthcare NHS Trust,12/01/2016,Childcare Voucher (Kids Unltd),Childcare Vouchers,Computershare Voucher Services,3284250,"77,422.13",Optional requirement only
Department of Health,Imperial College Healthcare NHS Trust,26/01/2016,Buildings-Additions-Purchased,Capital Summary,Conduct  Services,3293909,"89,442.92",Optional requirement only
Department of Health,Imperial College Healthcare NHS Trust,12/01/2016,Jac - Stock,Stock,Csl Behring Uk Ltd,3279129,"78,259.50",Optional requirement only
Department of Health,Imperial College Healthcare NHS Trust,19/01/2016,Jac - Stock,Stock,Csl Behring Uk Ltd,3289994,"34,596.00",Optional requirement only
Department of Health,Imperial College Healthcare NHS Trust,12/01/2016,Ext Contr Logistics,Finance Directorate,Dhl Supply Chain  (Former Excel),3274159,"140,446.18",Optional requirement only
Department of Health,Imperial College Healthcare NHS Trust,19/01/2016,Other Transport Costs,Investigative Sciences & C S,Dhl Supply Chain  (Former Excel),3280669,"88,951.27",Optional requirement only
Department of Health,Imperial College Healthcare NHS Trust,26/01/2016,Ext Contract - Patient Travel,Other Hq Departments,Dhl Supply Chain  (Former Excel),3296102,"74,646.00",Optional requirement only
Department of Health,Imperial College Healthcare NHS Trust,26/01/2016,Transcription Services,Division Of Medicine,Dictate It Ltd,3289013,"34,202.64",Optional requirement only
Department of Health,Imperial College Healthcare NHS Trust,26/01/2016,Transcription Services,"Surg, Canc & Cardiovasc Div",Dictate It Ltd,3289015,"36,698.32",Optional requirement only
Department of Health,Imperial College Healthcare NHS Trust,19/01/2016,Electricity,Directorate Of Strategy,Edf Energy Customer Plc,3289010,"204,290.05",Optional requirement only
Department of Health,Imperial College Healthcare NHS Trust,21/01/2016,Electricity,Directorate Of Strategy,Edf Energy Customer Plc,3286262,"83,110.59",Optional requirement only
Department of Health,Imperial College Healthcare NHS Trust,21/01/2016,Electricity,Directorate Of Strategy,Edf Energy Customer Plc,3286266,"236,819.21",Optional requirement only
Department of Health,Imperial College Healthcare NHS Trust,21/01/2016,Electricity,Directorate Of Strategy,Edf Energy Customer Plc,3286267,"33,983.75",Optional requirement only
Department of Health,Imperial College Healthcare NHS Trust,21/01/2016,Electricity,Directorate Of Strategy,Edf Energy Customer Plc,3286273,"231,012.91",Optional requirement only
Department of Health,Imperial College Healthcare NHS Trust,12/01/2016,Jac - Stock,Stock,Eli Lilly And Company Limited,3284881,"34,560.00",Optional requirement only
Department of Health,Imperial College Healthcare NHS Trust,26/01/2016,Postage & Carriage,Directorate Of Strategy,Francotyp-Postalia Uk Limited,3296207,"35,000.00",Optional requirement only
Department of Health,Imperial College Healthcare NHS Trust,14/01/2016,Buildings-Add(Prof Fee)-Purch,Capital Summary,Freeman Ankerman Partnership,3284934,"45,780.00",Optional requirement only
Department of Health,Imperial College Healthcare NHS Trust,26/01/2016,Med & Surg Maint Contract,Investigative Sciences & C S,Ge Healthcare,3296694,"40,471.20",Optional requirement only
Department of Health,Imperial College Healthcare NHS Trust,19/01/2016,Buildings-Additions-Purchased,Capital Summary,Ge Medical Systems Limited,3290176,"36,000.00",Optional requirement only
Department of Health,Imperial College Healthcare NHS Trust,26/01/2016,Med & Surg Equip Repair,Directorate Of Strategy,Ge Medical Systems Limited,3284299,"652,605.60",Optional requirement only
Department of Health,Imperial College Healthcare NHS Trust,26/01/2016,Med & Surg Equip Repair,Directorate Of Strategy,Ge Medical Systems Limited,3284300,"653,778.00",Optional requirement only
Department of Health,Imperial College Healthcare NHS Trust,26/01/2016,Med & Surg Equip Repair,Directorate Of Strategy,Ge Medical Systems Limited,3284301,"675,596.40",Optional requirement only
Department of Health,Imperial College Healthcare NHS Trust,26/01/2016,Med & Surg Equip Repair,Directorate Of Strategy,Ge Medical Systems Limited,3284302,"670,173.60",Optional requirement only
Department of Health,Imperial College Healthcare NHS Trust,26/01/2016,Med & Surg Equip Repair,Directorate Of Strategy,Ge Medical Systems Limited,3284303,"693,219.60",Optional requirement only
Department of Health,Imperial College Healthcare NHS Trust,21/01/2016,Med & Surg Equip General,Investigative Sciences & C S,Ge Medical Systems Limited,3292536,"284,910.64",Optional requirement only
Department of Health,Imperial College Healthcare NHS Trust,07/01/2016,Clinical Managed Service Contr,Investigative Sciences & C S,Genmed.Me Ltd,3274892,"507,838.86",Optional requirement only
Department of Health,Imperial College Healthcare NHS Trust,07/01/2016,Clinical Managed Service Contr,Investigative Sciences & C S,Genmed.Me Ltd,3274893,"86,035.49",Optional requirement only
Department of Health,Imperial College Healthcare NHS Trust,12/01/2016,Clinical Managed Service Contr,Investigative Sciences & C S,Genmed.Me Ltd,3285474,"142,937.63",Optional requirement only
Department of Health,Imperial College Healthcare NHS Trust,05/01/2016,Jac - Stock,Stock,Gilead Sciences Ltd,3281117,"47,931.46",Optional requirement only
Department of Health,Imperial College Healthcare NHS Trust,26/01/2016,P & M-Additions-Purchased,Capital Summary,Gilson Scientific Ltd,3296765,"67,363.38",Optional requirement only
Department of Health,Imperial College Healthcare NHS Trust,07/01/2016,Med & Surg Maint Contract,Investigative Sciences & C S,Hermes Medical Solutions,3277342,"53,014.02",Optional requirement only
Department of Health,Imperial College Healthcare NHS Trust,14/01/2016,Med & Surg Equip Leases,Directorate Of Strategy,Huntleigh Healthcare Ltd,3279537,"766,455.19",Optional requirement only
Department of Health,Imperial College Healthcare NHS Trust,05/01/2016,Agency Admin & Clerical,Director Of Operations,Ideal Health Consultants Ltd,3282169,"31,872.00",Optional requirement only
Department of Health,Imperial College Healthcare NHS Trust,05/01/2016,Agency Senior Manager,Director Of Operations,Ideal Health Consultants Ltd,3282168,"33,984.00",Optional requirement only
Department of Health,Imperial College Healthcare NHS Trust,26/01/2016,Jac - Stock,Stock,Idis Limited,3294618,"39,420.00",Optional requirement only
Department of Health,Imperial College Healthcare NHS Trust,19/01/2016,Dist Award - Local Cea,Division Of Medicine,Imperial College London,3287846,"38,107.08",Optional requirement only
Department of Health,Imperial College Healthcare NHS Trust,19/01/2016,Dist Award - Nat Cea,Division Of Medicine,Imperial College London,3287846,"62,789.05",Optional requirement only
Department of Health,Imperial College Healthcare NHS Trust,19/01/2016,Ic Pay Recharge In: Med,Division Of Medicine,Imperial College London,3287846,"66,093.47",Optional requirement only
Department of Health,Imperial College Healthcare NHS Trust,19/01/2016,Ic Pay Recharge In: Med,Division Of Medicine,Imperial College London,3287848,"106,883.43",Optional requirement only
Department of Health,Imperial College Healthcare NHS Trust,19/01/2016,Dist Award - Nat Cea,Division Of Women And Children,Imperial College London,3287846,"26,681.72",Optional requirement only
Department of Health,Imperial College Healthcare NHS Trust,19/01/2016,Ic Pay Recharge In: Med,Division Of Women And Children,Imperial College London,3287848,"65,019.60",Optional requirement only
Department of Health,Imperial College Healthcare NHS Trust,19/01/2016,Dist Award - Nat Cea,Investigative Sciences & C S,Imperial College London,3287846,"25,982.61",Optional requirement only
Department of Health,Imperial College Healthcare NHS Trust,19/01/2016,Ic Pay Recharge In: Med,Investigative Sciences & C S,Imperial College London,3287848,"39,896.18",Optional requirement only
Department of Health,Imperial College Healthcare NHS Trust,19/01/2016,Dist Award - Nat Cea,Medical Director Summary,Imperial College London,3287846,"31,576.20",Optional requirement only
Department of Health,Imperial College Healthcare NHS Trust,21/01/2016,Other Research Exp - Pay,Rd Iscs Division,Imperial College London,3292461,"28,809.26",Optional requirement only
Department of Health,Imperial College Healthcare NHS Trust,26/01/2016,Other Research Exp - Pay,Rd Iscs Division,Imperial College London,3296841,"49,132.30",Optional requirement only
Department of Health,Imperial College Healthcare NHS Trust,26/01/2016,Other Research Exp - Pay,Rd Iscs Division,Imperial College London,3296844,"27,254.59",Optional requirement only
Department of Health,Imperial College Healthcare NHS Trust,21/01/2016,Other Research Exp - Pay,Rd Medical Directorate,Imperial College London,3293888,"285,912.99",Optional requirement only
Department of Health,Imperial College Healthcare NHS Trust,26/01/2016,Other Research Exp - Pay,Rd Medical Directorate,Imperial College London,3296385,"38,539.14",Optional requirement only
Department of Health,Imperial College Healthcare NHS Trust,21/01/2016,Other Research Exp - Pay,Rd Medicine Division,Imperial College London,3292460,"35,531.68",Optional requirement only
Department of Health,Imperial College Healthcare NHS Trust,21/01/2016,Other Research Exp - Pay,Rd Medicine Division,Imperial College London,3293480,"72,000.00",Optional requirement only
Department of Health,Imperial College Healthcare NHS Trust,19/01/2016,Other Research Exp - Pay,Rd Surgery & Cancer Division,Imperial College London,3289732,"59,156.03",Optional requirement only
Department of Health,Imperial College Healthcare NHS Trust,21/01/2016,Other Research Exp - Pay,Rd Surgery & Cancer Division,Imperial College London,3293889,"59,412.50",Optional requirement only
Department of Health,Imperial College Healthcare NHS Trust,21/01/2016,Other Research Exp - Pay,Rdwomen And Children Division,Imperial College London,3292629,"46,716.49",Optional requirement only
Department of Health,Imperial College Healthcare NHS Trust,21/01/2016,Other Research Exp - Pay,Rdwomen And Children Division,Imperial College London,3293489,"57,446.82",Optional requirement only
Department of Health,Imperial College Healthcare NHS Trust,19/01/2016,Dist Award - Local Cea,"Surg, Canc & Cardiovasc Div",Imperial College London,3287846,"39,053.50",Optional requirement only
Department of Health,Imperial College Healthcare NHS Trust,19/01/2016,Dist Award - Nat Cea,"Surg, Canc & Cardiovasc Div",Imperial College London,3287846,"68,156.21",Optional requirement only
Department of Health,Imperial College Healthcare NHS Trust,19/01/2016,Ic Pay Recharge In: Med,"Surg, Canc & Cardiovasc Div",Imperial College London,3287846,"73,391.04",Optional requirement only
Department of Health,Imperial College Healthcare NHS Trust,19/01/2016,Ic Pay Recharge In: Med,"Surg, Canc & Cardiovasc Div",Imperial College London,3287847,"80,033.60",Optional requirement only
Department of Health,Imperial College Healthcare NHS Trust,19/01/2016,Ic Pay Recharge In: Med,"Surg, Canc & Cardiovasc Div",Imperial College London,3287848,"204,904.32",Optional requirement only
Department of Health,Imperial College Healthcare NHS Trust,14/01/2016,It Eqpt-Additions,Capital Summary,Insight Direct (Uk) Ltd,3287128,"94,348.80",Optional requirement only
Department of Health,Imperial College Healthcare NHS Trust,05/01/2016,Purch Hcare Independent Sector,Division Of Women And Children,Ivf Hammersmith Ltd,3281974,"50,310.00",Optional requirement only
Department of Health,Imperial College Healthcare NHS Trust,05/01/2016,Purch Hcare Independent Sector,Division Of Women And Children,Ivf Hammersmith Ltd,3281982,"47,736.00",Optional requirement only
Department of Health,Imperial College Healthcare NHS Trust,05/01/2016,Purch Hcare Independent Sector,Division Of Women And Children,Ivf Hammersmith Ltd,3281988,"228,624.00",Optional requirement only
Department of Health,Imperial College Healthcare NHS Trust,05/01/2016,Purch Hcare Independent Sector,Division Of Women And Children,Ivf Hammersmith Ltd,3281990,"48,884.00",Optional requirement only
Department of Health,Imperial College Healthcare NHS Trust,05/01/2016,Buildings-Additions-Purchased,Capital Summary,J.C. Watson Refrigeration,3281850,"46,542.60",Optional requirement only
Department of Health,Imperial College Healthcare NHS Trust,14/01/2016,Lease Charges,"Surg, Canc & Cardiovasc Div",Kci Uk Medical Limited,3273752,"39,900.00",Optional requirement only
Department of Health,Imperial College Healthcare NHS Trust,14/01/2016,Clinical Managed Service Contr,Investigative Sciences & C S,Leica Microsystems (Uk) Ltd,3285818,"87,206.57",Optional requirement only
Department of Health,Imperial College Healthcare NHS Trust,21/01/2016,Med & Surg Equip General,Investigative Sciences & C S,Leica Microsystems (Uk) Ltd,3293346,"74,446.09",Optional requirement only
Department of Health,Imperial College Healthcare NHS Trust,04/01/2016,Rent,Ravenscourt Directorate,Les Geonnais Limited,3281163,"1,395,000.00",Optional requirement only
Department of Health,Imperial College Healthcare NHS Trust,20/01/2016,Rates,Directorate Of Strategy,London Borough Hammersmith & Fulham,3291615,"157,491.00",Optional requirement only
Department of Health,Imperial College Healthcare NHS Trust,20/01/2016,Rates,Directorate Of Strategy,London Borough Hammersmith & Fulham,3291616,"137,997.00",Optional requirement only
Department of Health,Imperial College Healthcare NHS Trust,14/01/2016,Rent,Directorate Of Strategy,London Borough Of Hammersmith/Fulham,3286741,"67,800.00",Optional requirement only
Department of Health,Imperial College Healthcare NHS Trust,26/01/2016,Lease Rents,Directorate Of Strategy,London Borough Of Hammersmith/Fulham,3296084,"95,306.10",Optional requirement only
Department of Health,Imperial College Healthcare NHS Trust,05/01/2016,Non-Nhs Pay Recharge In: Med,Division Of Medicine,London Central & West Unscheduled Care Collab,3281598,"182,721.44",Optional requirement only
Department of Health,Imperial College Healthcare NHS Trust,05/01/2016,Non-Nhs Pay Recharge In: Med,Division Of Medicine,London Central & West Unscheduled Care Collab,3281599,"182,721.44",Optional requirement only
Department of Health,Imperial College Healthcare NHS Trust,05/01/2016,Non-Nhs Pay Rechge In Clerical,Division Of Medicine,London Central & West Unscheduled Care Collab,3281598,"44,494.66",Optional requirement only
Department of Health,Imperial College Healthcare NHS Trust,05/01/2016,Non-Nhs Pay Rechge In Clerical,Division Of Medicine,London Central & West Unscheduled Care Collab,3281599,"44,494.66",Optional requirement only
Department of Health,Imperial College Healthcare NHS Trust,05/01/2016,Purch Hcare Independent Sector,Division Of Medicine,London Central & West Unscheduled Care Collab,3281598,"113,505.27",Optional requirement only
Department of Health,Imperial College Healthcare NHS Trust,05/01/2016,Purch Hcare Independent Sector,Division Of Medicine,London Central & West Unscheduled Care Collab,3281599,"113,505.27",Optional requirement only
Department of Health,Imperial College Healthcare NHS Trust,12/01/2016,Non-Nhs Pay Recharge In: Med,Division Of Medicine,London Central & West Unscheduled Care Collab,3285285,"43,928.56",Optional requirement only
Department of Health,Imperial College Healthcare NHS Trust,19/01/2016,Non-Nhs Pay Recharge In: Med,Division Of Medicine,London Central & West Unscheduled Care Collab,3287845,"57,129.41",Optional requirement only
Department of Health,Imperial College Healthcare NHS Trust,26/01/2016,Non-Nhs Pay Recharge In: Med,Division Of Medicine,London Central & West Unscheduled Care Collab,3296167,"65,020.85",Optional requirement only
Department of Health,Imperial College Healthcare NHS Trust,14/01/2016,Buildings-Additions-Purchased,Capital Summary,Me Construction Ltd,3275972,"123,272.40",Optional requirement only
Department of Health,Imperial College Healthcare NHS Trust,19/01/2016,Prostheses,Division Of Medicine,Medtronic Ltd,3287442,"64,533.60",Optional requirement only
Department of Health,Imperial College Healthcare NHS Trust,12/01/2016,Blood Products,Investigative Sciences & C S,Nhs Blood And Transplant,3278182,"71,463.00",Optional requirement only
Department of Health,Imperial College Healthcare NHS Trust,12/01/2016,Blood Products,Investigative Sciences & C S,Nhs Blood And Transplant,3283577,"174,326.58",Optional requirement only
Department of Health,Imperial College Healthcare NHS Trust,20/01/2016,Insurance Costs,Directorate Of Strategy,Nhs Litigation Authority,3291619,"45,940.50",Optional requirement only
Department of Health,Imperial College Healthcare NHS Trust,20/01/2016,Cnst Contributions,Other Hq Departments,Nhs Litigation Authority,3291618,"2,506,808.50",Optional requirement only
Department of Health,Imperial College Healthcare NHS Trust,21/01/2016,P & M-Additions-Purchased,Capital Summary,Nhs Supply Chain,3283542,"123,882.92",Optional requirement only
Department of Health,Imperial College Healthcare NHS Trust,07/01/2016,Med & Surg Maint Contract,Division Of Medicine,Nhs Supply Chain,3283288,"557,337.96",Optional requirement only
Department of Health,Imperial College Healthcare NHS Trust,05/01/2016,Supplies Issues Recharges,Stock,Nhs Supply Chain,3282043,"136,373.54",Optional requirement only
Department of Health,Imperial College Healthcare NHS Trust,05/01/2016,Supplies Issues Recharges,Stock,Nhs Supply Chain,3282044,"157,968.22",Optional requirement only
Department of Health,Imperial College Healthcare NHS Trust,05/01/2016,Supplies Issues Recharges,Stock,Nhs Supply Chain,3282049,"168,133.07",Optional requirement only
Department of Health,Imperial College Healthcare NHS Trust,05/01/2016,Supplies Issues Recharges,Stock,Nhs Supply Chain,3282051,"157,885.55",Optional requirement only
Department of Health,Imperial College Healthcare NHS Trust,05/01/2016,Supplies Issues Recharges,Stock,Nhs Supply Chain,3282052,"102,037.48",Optional requirement only
Department of Health,Imperial College Healthcare NHS Trust,05/01/2016,Supplies Issues Recharges,Stock,Nhs Supply Chain,3282054,"101,505.09",Optional requirement only
Department of Health,Imperial College Healthcare NHS Trust,05/01/2016,Supplies Issues Recharges,Stock,Nhs Supply Chain,3282055,"117,529.69",Optional requirement only
Department of Health,Imperial College Healthcare NHS Trust,05/01/2016,Supplies Issues Recharges,Stock,Nhs Supply Chain,3282056,"102,372.30",Optional requirement only
Department of Health,Imperial College Healthcare NHS Trust,05/01/2016,Supplies Issues Recharges,Stock,Nhs Supply Chain,3282057,"112,830.45",Optional requirement only
Department of Health,Imperial College Healthcare NHS Trust,05/01/2016,Supplies Issues Recharges,Stock,Nhs Supply Chain,3282058,"85,686.82",Optional requirement only
Department of Health,Imperial College Healthcare NHS Trust,05/01/2016,Supplies Issues Recharges,Stock,Nhs Supply Chain,3282071,"106,544.77",Optional requirement only
Department of Health,Imperial College Healthcare NHS Trust,05/01/2016,Supplies Issues Recharges,Stock,Nhs Supply Chain,3282072,"107,078.70",Optional requirement only
Department of Health,Imperial College Healthcare NHS Trust,05/01/2016,Supplies Issues Recharges,Stock,Nhs Supply Chain,3282073,"87,498.27",Optional requirement only
Department of Health,Imperial College Healthcare NHS Trust,12/01/2016,Supplies Issues Recharges,Stock,Nhs Supply Chain,3284499,"61,116.36",Optional requirement only
Department of Health,Imperial College Healthcare NHS Trust,12/01/2016,Supplies Issues Recharges,Stock,Nhs Supply Chain,3285286,"80,540.03",Optional requirement only
Department of Health,Imperial College Healthcare NHS Trust,12/01/2016,Supplies Issues Recharges,Stock,Nhs Supply Chain,3285300,"43,896.75",Optional requirement only
Department of Health,Imperial College Healthcare NHS Trust,18/01/2016,Supplies Issues Recharges,Stock,Nhs Supply Chain,3289710,"77,099.76",Optional requirement only
Department of Health,Imperial College Healthcare NHS Trust,18/01/2016,Supplies Issues Recharges,Stock,Nhs Supply Chain,3289731,"78,822.57",Optional requirement only
Department of Health,Imperial College Healthcare NHS Trust,20/01/2016,Supplies Issues Recharges,Stock,Nhs Supply Chain,3290305,"122,170.74",Optional requirement only
Department of Health,Imperial College Healthcare NHS Trust,26/01/2016,Supplies Issues Recharges,Stock,Nhs Supply Chain,3294901,"98,683.97",Optional requirement only
Department of Health,Imperial College Healthcare NHS Trust,26/01/2016,Supplies Issues Recharges,Stock,Nhs Supply Chain,3296139,"148,327.09",Optional requirement only
Department of Health,Imperial College Healthcare NHS Trust,26/01/2016,Supplies Issues Recharges,Stock,Nhs Supply Chain,3296291,"91,564.04",Optional requirement only
Department of Health,Imperial College Healthcare NHS Trust,26/01/2016,Supplies Issues Recharges,Stock,Nhs Supply Chain,3296434,"128,975.71",Optional requirement only
Department of Health,Imperial College Healthcare NHS Trust,07/01/2016,Med & Surg Maint Contract,"Surg, Canc & Cardiovasc Div",Nhs Supply Chain,3283288,"166,362.40",Optional requirement only
Department of Health,Imperial College Healthcare NHS Trust,05/01/2016,Electronic Salary Sacrifice,Salary Sacrifice,Northumbria Healthcare Nhs Foundation Trust,3280858,"28,328.36",Optional requirement only
Department of Health,Imperial College Healthcare NHS Trust,19/01/2016,Electronic Salary Sacrifice,Salary Sacrifice,Northumbria Healthcare Nhs Foundation Trust,3286890,"30,792.42",Optional requirement only
Department of Health,Imperial College Healthcare NHS Trust,19/01/2016,Electronic Salary Sacrifice,Salary Sacrifice,Northumbria Healthcare Nhs Foundation Trust,3286900,"40,582.76",Optional requirement only
Department of Health,Imperial College Healthcare NHS Trust,26/01/2016,Electronic Salary Sacrifice,Salary Sacrifice,Northumbria Healthcare Nhs Foundation Trust,3284491,"31,304.77",Optional requirement only
Department of Health,Imperial College Healthcare NHS Trust,07/01/2016,Agency Nursing: Qualified,Division Of Medicine,Reed,3283257,"116,322.32",Optional requirement only
Department of Health,Imperial College Healthcare NHS Trust,19/01/2016,Agency Nursing: Qualified,Division Of Medicine,Reed,3288380,"62,569.19",Optional requirement only
Department of Health,Imperial College Healthcare NHS Trust,26/01/2016,Agency Nursing: Qualified,Division Of Medicine,Reed,3293349,"70,702.22",Optional requirement only
Department of Health,Imperial College Healthcare NHS Trust,07/01/2016,Agency Nursing: Qualified,Division Of Women And Children,Reed,3283257,"136,575.42",Optional requirement only
Department of Health,Imperial College Healthcare NHS Trust,19/01/2016,Agency Nursing: Qualified,Division Of Women And Children,Reed,3288380,"64,015.44",Optional requirement only
Department of Health,Imperial College Healthcare NHS Trust,26/01/2016,Agency Nursing: Qualified,Division Of Women And Children,Reed,3293349,"98,556.49",Optional requirement only
Department of Health,Imperial College Healthcare NHS Trust,07/01/2016,Agency Scient & Prof Qualified,Investigative Sciences & C S,Reed,3283258,"42,662.89",Optional requirement only
Department of Health,Imperial College Healthcare NHS Trust,12/01/2016,Agency Scient & Prof Qualified,Investigative Sciences & C S,Reed,3284295,"33,980.05",Optional requirement only
Department of Health,Imperial College Healthcare NHS Trust,07/01/2016,Agency Nursing: Qualified,"Surg, Canc & Cardiovasc Div",Reed,3283257,"237,146.16",Optional requirement only
Department of Health,Imperial College Healthcare NHS Trust,19/01/2016,Agency Nursing: Qualified,"Surg, Canc & Cardiovasc Div",Reed,3288380,"107,385.44",Optional requirement only
Department of Health,Imperial College Healthcare NHS Trust,26/01/2016,Agency Nursing: Qualified,"Surg, Canc & Cardiovasc Div",Reed,3293349,"44,728.72",Optional requirement only
Department of Health,Imperial College Healthcare NHS Trust,05/01/2016,Jac - Stock,Stock,Roche Products Ltd,3281675,"54,350.28",Optional requirement only
Department of Health,Imperial College Healthcare NHS Trust,14/01/2016,Jac - Stock,Stock,Roche Products Ltd,3279272,"53,106.96",Optional requirement only
Department of Health,Imperial College Healthcare NHS Trust,26/01/2016,Jac - Stock,Stock,Roche Products Ltd,3281662,"96,214.30",Optional requirement only
Department of Health,Imperial College Healthcare NHS Trust,26/01/2016,Jac - Stock,Stock,Roche Products Ltd,3291408,"54,754.56",Optional requirement only
Department of Health,Imperial College Healthcare NHS Trust,12/01/2016,Engineering Contracts,Directorate Of Strategy,Shj Hospital Pipelines Ltd,3284935,"41,656.52",Optional requirement only
Department of Health,Imperial College Healthcare NHS Trust,21/01/2016,Engineering Contracts,Directorate Of Strategy,Shj Hospital Pipelines Ltd,3293350,"52,070.68",Optional requirement only
Department of Health,Imperial College Healthcare NHS Trust,19/01/2016,P & M-Additions-Purchased,Capital Summary,Siemens Healthcare Plc,3286833,"79,091.04",Optional requirement only
Department of Health,Imperial College Healthcare NHS Trust,19/01/2016,P & M-Additions-Purchased,Capital Summary,Siemens Healthcare Plc,3286837,"79,091.04",Optional requirement only
Department of Health,Imperial College Healthcare NHS Trust,12/01/2016,Isotopes,Investigative Sciences & C S,Siemens Healthcare Plc,3285861,"35,988.00",Optional requirement only
Department of Health,Imperial College Healthcare NHS Trust,21/01/2016,Isotopes,Investigative Sciences & C S,Siemens Healthcare Plc,3293515,"39,420.00",Optional requirement only
Department of Health,Imperial College Healthcare NHS Trust,14/01/2016,Ext Contract Portering,Directorate Of Strategy,Sodexo Limited,3283639,"48,259.98",Optional requirement only
Department of Health,Imperial College Healthcare NHS Trust,14/01/2016,Ext Contract Portering,Directorate Of Strategy,Sodexo Limited,3283646,"459,593.15",Optional requirement only
Department of Health,Imperial College Healthcare NHS Trust,14/01/2016,Ext Contract Portering,Directorate Of Strategy,Sodexo Limited,3287465,"450,366.06",Optional requirement only
Department of Health,Imperial College Healthcare NHS Trust,14/01/2016,Ext Contract Portering,Directorate Of Strategy,Sodexo Limited,3287466,"450,366.06",Optional requirement only
Department of Health,Imperial College Healthcare NHS Trust,14/01/2016,Ext Contr Catering,Directorate Of Strategy,Sodexo Limited,3283646,"629,214.95",Optional requirement only
Department of Health,Imperial College Healthcare NHS Trust,14/01/2016,Ext Contr Catering,Directorate Of Strategy,Sodexo Limited,3287465,"616,582.45",Optional requirement only
Department of Health,Imperial College Healthcare NHS Trust,14/01/2016,Ext Contr Catering,Directorate Of Strategy,Sodexo Limited,3287466,"616,582.44",Optional requirement only
Department of Health,Imperial College Healthcare NHS Trust,14/01/2016,Ext Contr Domestics,Directorate Of Strategy,Sodexo Limited,3283646,"1,223,979.54",Optional requirement only
Department of Health,Imperial College Healthcare NHS Trust,14/01/2016,Ext Contr Domestics,Directorate Of Strategy,Sodexo Limited,3287465,"1,199,406.16",Optional requirement only
Department of Health,Imperial College Healthcare NHS Trust,14/01/2016,Ext Contr Domestics,Directorate Of Strategy,Sodexo Limited,3287466,"1,199,406.16",Optional requirement only
Department of Health,Imperial College Healthcare NHS Trust,14/01/2016,Ext Contr Oth Hotel Srv,Directorate Of Strategy,Sodexo Limited,3283646,"91,001.20",Optional requirement only
Department of Health,Imperial College Healthcare NHS Trust,14/01/2016,Ext Contr Oth Hotel Srv,Directorate Of Strategy,Sodexo Limited,3287465,"89,174.19",Optional requirement only
Department of Health,Imperial College Healthcare NHS Trust,14/01/2016,Ext Contr Oth Hotel Srv,Directorate Of Strategy,Sodexo Limited,3287466,"89,174.20",Optional requirement only
Department of Health,Imperial College Healthcare NHS Trust,21/01/2016,Ext Contract Portering,Directorate Of Strategy,Sodexo Limited,3283644,"459,593.15",Optional requirement only
Department of Health,Imperial College Healthcare NHS Trust,21/01/2016,Ext Contr Catering,Directorate Of Strategy,Sodexo Limited,3283644,"629,214.95",Optional requirement only
Department of Health,Imperial College Healthcare NHS Trust,21/01/2016,Ext Contr Domestics,Directorate Of Strategy,Sodexo Limited,3283644,"1,223,979.54",Optional requirement only
Department of Health,Imperial College Healthcare NHS Trust,21/01/2016,Ext Contr Oth Hotel Srv,Directorate Of Strategy,Sodexo Limited,3283644,"91,001.20",Optional requirement only
Department of Health,Imperial College Healthcare NHS Trust,14/01/2016,Ext Contr Oth Hotel Srv,Private Patients Directorate,Sodexo Limited,3273052,"168,458.00",Optional requirement only
Department of Health,Imperial College Healthcare NHS Trust,05/01/2016,Med & Surg Equip General,"Surg, Canc & Cardiovasc Div",St Jude Medical U K Limited,3280848,"140,940.00",Optional requirement only
Department of Health,Imperial College Healthcare NHS Trust,28/01/2016,Conferences And Seminars,Human Resources,Steigenberger Belvedere,3297972,"26,778.94",Optional requirement only
Department of Health,Imperial College Healthcare NHS Trust,19/01/2016,Cleaning Materials,Directorate Of Strategy,Synergy Health Uk Ltd,3289208,"51,657.90",Optional requirement only
Department of Health,Imperial College Healthcare NHS Trust,21/01/2016,Ext Contr Laundry,Directorate Of Strategy,Synergy Health Uk Ltd,3289209,"57,054.97",Optional requirement only
Department of Health,Imperial College Healthcare NHS Trust,21/01/2016,Ext Contr Laundry,Directorate Of Strategy,Synergy Health Uk Ltd,3289210,"45,408.66",Optional requirement only
Department of Health,Imperial College Healthcare NHS Trust,05/01/2016,Thames Valley Housing Assoc,Housing Deductions,Thames Valley Charitable Housing,3280084,"112,871.50",Optional requirement only
Department of Health,Imperial College Healthcare NHS Trust,19/01/2016,Water,Directorate Of Strategy,Thames Water Utilities Limited,3285552,"35,330.55",Optional requirement only
Department of Health,Imperial College Healthcare NHS Trust,07/01/2016,Organ Donor Expenses,"Surg, Canc & Cardiovasc Div",The Anthony Nolan Trust,3283574,"26,206.97",Optional requirement only
Department of Health,Imperial College Healthcare NHS Trust,19/01/2016,Medical Agency Commission,Division of Medicine,The Recruitment Express,3283168,"39,873.72",Optional requirement only
Department of Health,Imperial College Healthcare NHS Trust,19/01/2016,Medical Agency Commission,Division of Medicine,The Recruitment Express,3283171,"31,834.49",Optional requirement only
Department of Health,Imperial College Healthcare NHS Trust,19/01/2016,Medical Agency Commission,Division of Medicine,The Recruitment Express,3283172,"40,497.73",Optional requirement only
Department of Health,Imperial College Healthcare NHS Trust,19/01/2016,Medical Agency Commission,Division of Medicine,The Recruitment Express,3283178,"45,263.34",Optional requirement only
Department of Health,Imperial College Healthcare NHS Trust,12/01/2016,Computer Maintenance,Information & Comms Technology,Ultima Business Solutions Ltd,3284483,"33,600.00",Optional requirement only
Department of Health,Imperial College Healthcare NHS Trust,12/01/2016,Computer Software/License,Rd Medical Directorate,University Of Southampton,3284337,"48,577.67",Optional requirement only
Department of Health,Imperial College Healthcare NHS Trust,12/01/2016,Services Received - Nhsts,Division Of Medicine,West London Mental Health Nhs Trust,3285968,"47,600.00",Optional requirement only
Department of Health,Imperial College Healthcare NHS Trust,26/01/2016,Other Research Exp - Non-Pay,Rd Medical Directorate,West London Mental Health Nhs Trust,3295238,"83,982.00",Optional requirement only
Department of Health,Imperial College Healthcare NHS Trust,19/01/2016,Postage & Carriage,Directorate Of Strategy,Whistl London Limited,3289214,"34,449.55",Optional requirement only
,,,,,,Sum:,"34,029,606.61",
